[Event "*** Titled Tuesday Blitz"]
[Site "Chess.com"]
[Date "2021.03.02"]
[Round "3"]
[White "mortngabriel"]
[Black "FeketeBarika"]
[Result "0-1"]
[WhiteElo "2483"]
[BlackElo "2246"]
[TimeControl "180+1"]
[EndTime "10:28:00 PST"]
[Termination "FeketeBarika won by resignation"]

1. e4 {[%clk 0:03:00.9]} 1... e6 {[%clk 0:02:37.1]} 2. Nf3 {[%clk 0:03:00.6]}
2... d5 {[%clk 0:02:38]} 3. e5 {[%clk 0:03:01]} 3... c5 {[%clk 0:02:36.8]} 4. b4
{[%clk 0:03:01.5]} 4... cxb4 {[%clk 0:02:20.4]} 5. a3 {[%clk 0:03:01.8]} 5...
Nc6 {[%clk 0:02:15.5]} 6. axb4 {[%clk 0:03:01.7]} 6... Nxb4 {[%clk 0:02:13.4]}
7. c3 {[%clk 0:03:02]} 7... Nc6 {[%clk 0:02:14.1]} 8. d4 {[%clk 0:03:02.7]} 8...
Bd7 {[%clk 0:02:09]} 9. Bd3 {[%clk 0:03:02.8]} 9... a6 {[%clk 0:02:06.5]} 10.
Ng5 {[%clk 0:02:45]} 10... g6 {[%clk 0:02:03]} 11. h4 {[%clk 0:02:41.8]} 11...
h6 {[%clk 0:01:58.5]} 12. Nf3 {[%clk 0:02:23.5]} 12... Bg7 {[%clk 0:01:56.8]}
13. h5 {[%clk 0:02:09.9]} 13... g5 {[%clk 0:01:54.7]} 14. Ba3 {[%clk 0:02:09]}
14... Nge7 {[%clk 0:01:51.9]} 15. O-O {[%clk 0:02:00.4]} 15... O-O {[%clk
0:01:50.3]} 16. Nh2 {[%clk 0:01:49.2]} 16... Re8 {[%clk 0:01:35.2]} 17. Bc2
{[%clk 0:01:38.4]} 17... f5 {[%clk 0:01:15.7]} 18. exf6 {[%clk 0:01:37.9]} 18...
Bxf6 {[%clk 0:01:16.1]} 19. Qd3 {[%clk 0:00:20.6]} 19... Nf5 {[%clk 0:01:15.3]}
20. g4 {[%clk 0:00:20.7]} 20... e5 {[%clk 0:01:15.3]} 21. gxf5 {[%clk
0:00:18.6]} 21... e4 {[%clk 0:01:14.8]} 22. Qh3 {[%clk 0:00:16.9]} 22... Qc8
{[%clk 0:01:13.9]} 23. Ng4 {[%clk 0:00:16.4]} 23... Bg7 {[%clk 0:01:14.2]} 24.
Nd2 {[%clk 0:00:14.7]} 24... Bxf5 {[%clk 0:01:14]} 25. f3 {[%clk 0:00:14.9]}
25... b5 {[%clk 0:01:08.3]} 26. Qg2 {[%clk 0:00:12.3]} 26... e3 {[%clk
0:01:00.4]} 27. Bxf5 {[%clk 0:00:11.5]} 27... Qxf5 {[%clk 0:01:01.3]} 28. Nb3
{[%clk 0:00:10.3]} 28... b4 {[%clk 0:00:59.6]} 29. Bb2 {[%clk 0:00:10.1]} 29...
a5 {[%clk 0:00:57.8]} 30. cxb4 {[%clk 0:00:09.8]} 30... axb4 {[%clk 0:00:57]}
31. Rae1 {[%clk 0:00:10.2]} 31... Ra2 {[%clk 0:00:46.2]} 32. Rxe3 {[%clk
0:00:09.9]} 32... Rxe3 {[%clk 0:00:44.6]} 33. Nxe3 {[%clk 0:00:10.8]} 33... Qd3
{[%clk 0:00:43.4]} 34. Nxd5 {[%clk 0:00:07.7]} 34... Qxb3 {[%clk 0:00:42.2]} 35.
Rf2 {[%clk 0:00:04.8]} 35... Qxd5 {[%clk 0:00:41.7]} 0-1

[Event "*** Titled Tuesday Blitz"]
[Site "Chess.com"]
[Date "2021.03.02"]
[Round "3"]
[White "svilson23"]
[Black "Grimlock_Glasgow"]
[Result "0-1"]
[WhiteElo "2240"]
[BlackElo "2457"]
[TimeControl "180+1"]
[EndTime "10:28:00 PST"]
[Termination "Grimlock_Glasgow won by resignation"]

1. Nf3 {[%clk 0:03:00.9]} 1... d5 {[%clk 0:02:58.9]} 2. c4 {[%clk 0:03:00.4]}
2... d4 {[%clk 0:02:58.1]} 3. b4 {[%clk 0:02:59.2]} 3... g5 {[%clk 0:02:57.9]}
4. Qb3 {[%clk 0:02:25.1]} 4... e5 {[%clk 0:02:36.7]} 5. Nxe5 {[%clk 0:02:05.3]}
5... Bg7 {[%clk 0:02:36.5]} 6. Nd3 {[%clk 0:02:03.8]} 6... Nf6 {[%clk
0:02:24.8]} 7. g3 {[%clk 0:02:03.7]} 7... O-O {[%clk 0:02:22.3]} 8. Bg2 {[%clk
0:02:04.2]} 8... Re8 {[%clk 0:02:07.1]} 9. Bb2 {[%clk 0:02:04]} 9... a5 {[%clk
0:01:57.3]} 10. e3 {[%clk 0:01:54.3]} 10... axb4 {[%clk 0:01:54.3]} 11. O-O
{[%clk 0:01:51.5]} 11... dxe3 {[%clk 0:01:36.3]} 12. fxe3 {[%clk 0:01:50.2]}
12... Na6 {[%clk 0:01:26.7]} 13. a3 {[%clk 0:01:34]} 13... bxa3 {[%clk
0:01:24.5]} 14. Nxa3 {[%clk 0:01:33.3]} 14... c6 {[%clk 0:01:08.8]} 15. Bd4
{[%clk 0:01:03.6]} 15... Ne4 {[%clk 0:00:58.6]} 16. Bxg7 {[%clk 0:00:45.5]}
16... Kxg7 {[%clk 0:00:59.5]} 17. Qb2+ {[%clk 0:00:37]} 17... f6 {[%clk
0:00:59.4]} 18. Nf2 {[%clk 0:00:20.7]} 18... Qxd2 {[%clk 0:00:53.5]} 19. Qb6
{[%clk 0:00:11.1]} 19... Nxf2 {[%clk 0:00:51.2]} 20. Rxf2 {[%clk 0:00:12]} 20...
Qxe3 {[%clk 0:00:51.2]} 21. Qb2 {[%clk 0:00:11.6]} 21... Nc5 {[%clk 0:00:48.1]}
22. Qxf6+ {[%clk 0:00:10.1]} 22... Kg8 {[%clk 0:00:46.7]} 23. Qf7+ {[%clk
0:00:08.5]} 23... Kh8 {[%clk 0:00:46.8]} 24. Qf6+ {[%clk 0:00:07]} 24... Kg8
{[%clk 0:00:46.9]} 25. Rf1 {[%clk 0:00:04.9]} 25... Be6 {[%clk 0:00:43.7]} 26.
Bh3 {[%clk 0:00:02.8]} 26... Rxa3 {[%clk 0:00:33.9]} 27. Bxe6+ {[%clk
0:00:02.6]} 27... Nxe6 {[%clk 0:00:33.8]} 28. Qf7+ {[%clk 0:00:02.7]} 28... Kh8
{[%clk 0:00:31.7]} 29. Qf6+ {[%clk 0:00:02.6]} 29... Ng7 {[%clk 0:00:29.8]} 30.
Qf8+ {[%clk 0:00:02.2]} 30... Rxf8 {[%clk 0:00:29.4]} 0-1

[Event "*** Titled Tuesday Blitz"]
[Site "Chess.com"]
[Date "2021.03.02"]
[Round "3"]
[White "katchesskat"]
[Black "heyjohnnypark"]
[Result "0-1"]
[WhiteElo "2283"]
[BlackElo "2602"]
[TimeControl "180+1"]
[EndTime "10:28:01 PST"]
[Termination "heyjohnnypark won on time"]

1. c4 {[%clk 0:03:00.9]} 1... e5 {[%clk 0:02:58.8]} 2. e3 {[%clk 0:03:00.8]}
2... Nf6 {[%clk 0:02:58]} 3. a3 {[%clk 0:03:01]} 3... c6 {[%clk 0:02:57.6]} 4.
b4 {[%clk 0:03:00.2]} 4... d5 {[%clk 0:02:57.4]} 5. Qc2 {[%clk 0:02:59.1]} 5...
d4 {[%clk 0:02:55.2]} 6. Nf3 {[%clk 0:02:56.4]} 6... Bd6 {[%clk 0:02:36.2]} 7.
Bb2 {[%clk 0:02:47.5]} 7... dxe3 {[%clk 0:02:35]} 8. dxe3 {[%clk 0:02:30.1]}
8... Qe7 {[%clk 0:02:31]} 9. c5 {[%clk 0:02:29.4]} 9... Bc7 {[%clk 0:02:30.9]}
10. e4 {[%clk 0:02:27.1]} 10... a5 {[%clk 0:02:23.6]} 11. Bc4 {[%clk 0:02:25.5]}
11... O-O {[%clk 0:02:17.4]} 12. O-O {[%clk 0:02:25.2]} 12... axb4 {[%clk
0:02:14]} 13. axb4 {[%clk 0:02:25]} 13... Rxa1 {[%clk 0:02:14.9]} 14. Bxa1
{[%clk 0:02:25.9]} 14... Nbd7 {[%clk 0:02:05.5]} 15. Nbd2 {[%clk 0:02:16.9]}
15... b6 {[%clk 0:02:05.5]} 16. Nb3 {[%clk 0:02:12.2]} 16... Nh5 {[%clk
0:01:49.9]} 17. Rd1 {[%clk 0:01:55.8]} 17... b5 {[%clk 0:01:46.1]} 18. Bf1
{[%clk 0:01:54.9]} 18... Ndf6 {[%clk 0:01:33.8]} 19. Bc3 {[%clk 0:01:45.3]}
19... Bg4 {[%clk 0:01:31.8]} 20. Nbd2 {[%clk 0:01:38.2]} 20... Nf4 {[%clk
0:01:13.1]} 21. h3 {[%clk 0:01:37.1]} 21... Bh5 {[%clk 0:01:01.4]} 22. g3 {[%clk
0:01:25.4]} 22... Ne6 {[%clk 0:01:00.7]} 23. Ra1 {[%clk 0:01:21.9]} 23... Bb8
{[%clk 0:00:52.9]} 24. Nxe5 {[%clk 0:00:59.6]} 24... Nd8 {[%clk 0:00:52.4]} 25.
f4 {[%clk 0:00:54.3]} 25... Nd7 {[%clk 0:00:46.3]} 26. Nd3 {[%clk 0:00:48.3]}
26... f5 {[%clk 0:00:43]} 27. e5 {[%clk 0:00:41.6]} 27... Ne6 {[%clk 0:00:40.9]}
28. Ra6 {[%clk 0:00:34.1]} 28... g5 {[%clk 0:00:39.4]} 29. Rxc6 {[%clk
0:00:32.5]} 29... gxf4 {[%clk 0:00:39.5]} 30. gxf4 {[%clk 0:00:32.7]} 30... Kh8
{[%clk 0:00:39.2]} 31. Kh2 {[%clk 0:00:31.9]} 31... Rg8 {[%clk 0:00:38]} 32. Qa2
{[%clk 0:00:23.8]} 32... Qh4 {[%clk 0:00:37.1]} 0-1

[Event "*** Titled Tuesday Blitz"]
[Site "Chess.com"]
[Date "2021.03.02"]
[Round "3"]
[White "Azde"]
[Black "GM_Crest"]
[Result "0-1"]
[WhiteElo "2450"]
[BlackElo "2769"]
[TimeControl "180+1"]
[EndTime "10:28:02 PST"]
[Termination "GM_Crest won by resignation"]

1. d4 {[%clk 0:03:00.9]} 1... d5 {[%clk 0:02:31.8]} 2. c4 {[%clk 0:03:00.2]}
2... dxc4 {[%clk 0:02:26.8]} 3. e3 {[%clk 0:03:00.1]} 3... e6 {[%clk 0:02:26.2]}
4. Bxc4 {[%clk 0:03:00.2]} 4... c5 {[%clk 0:02:24.4]} 5. Nf3 {[%clk 0:03:00.5]}
5... Nf6 {[%clk 0:02:24.2]} 6. O-O {[%clk 0:03:00.6]} 6... a6 {[%clk 0:02:24.2]}
7. a4 {[%clk 0:02:59.9]} 7... Nc6 {[%clk 0:02:23.5]} 8. Qe2 {[%clk 0:02:55.5]}
8... cxd4 {[%clk 0:02:22.9]} 9. Rd1 {[%clk 0:02:55]} 9... Be7 {[%clk 0:02:23.2]}
10. Nxd4 {[%clk 0:02:44.8]} 10... Qc7 {[%clk 0:02:22.3]} 11. Nc3 {[%clk
0:02:37.6]} 11... O-O {[%clk 0:02:19.8]} 12. Nxc6 {[%clk 0:02:33.7]} 12... bxc6
{[%clk 0:02:19.5]} 13. e4 {[%clk 0:02:33.2]} 13... e5 {[%clk 0:02:19.8]} 14. Be3
{[%clk 0:02:27.7]} 14... a5 {[%clk 0:02:20.1]} 15. h3 {[%clk 0:02:26.5]} 15...
h6 {[%clk 0:02:13]} 16. Rac1 {[%clk 0:02:26]} 16... Rb8 {[%clk 0:02:13.1]} 17.
Rc2 {[%clk 0:02:00.4]} 17... Bb4 {[%clk 0:02:11.8]} 18. f3 {[%clk 0:01:59.5]}
18... Qe7 {[%clk 0:02:11]} 19. Rdc1 {[%clk 0:01:49.8]} 19... Nh5 {[%clk
0:02:10.4]} 20. Qf2 {[%clk 0:01:47.1]} 20... Nf4 {[%clk 0:02:08.9]} 21. Ne2
{[%clk 0:01:36.8]} 21... Qg5 {[%clk 0:01:35.6]} 22. Bxf4 {[%clk 0:01:20.7]}
22... exf4 {[%clk 0:01:35.4]} 23. Ba2 {[%clk 0:01:11.6]} 23... Bxh3 {[%clk
0:01:30.6]} 24. Rxc6 {[%clk 0:01:04.7]} 24... Bd7 {[%clk 0:01:30.4]} 25. Rc7
{[%clk 0:00:41.3]} 25... Bxa4 {[%clk 0:01:30.3]} 26. Nd4 {[%clk 0:00:41.5]}
26... Rbd8 {[%clk 0:01:25.8]} 27. Bd5 {[%clk 0:00:28.6]} 27... Rxd5 {[%clk
0:01:16.7]} 28. exd5 {[%clk 0:00:28.3]} 28... Qxd5 {[%clk 0:01:17.3]} 29. Nc6
{[%clk 0:00:18.4]} 29... Bxc6 {[%clk 0:01:04.4]} 30. R7xc6 {[%clk 0:00:19.3]}
30... Bd2 {[%clk 0:01:02.6]} 31. R1c5 {[%clk 0:00:15.1]} 31... Qd3 {[%clk
0:00:55.5]} 32. Kh2 {[%clk 0:00:12.4]} 32... Be3 {[%clk 0:00:52.9]} 33. Qh4
{[%clk 0:00:12.3]} 33... Qf1 {[%clk 0:00:41.9]} 34. Kh3 {[%clk 0:00:08.4]} 34...
Qh1+ {[%clk 0:00:41.5]} 35. Kg4 {[%clk 0:00:08.7]} 35... Qxg2+ {[%clk
0:00:41.8]} 36. Kf5 {[%clk 0:00:07.2]} 36... Bxc5 {[%clk 0:00:35.2]} 0-1

[Event "*** Titled Tuesday Blitz"]
[Site "Chess.com"]
[Date "2021.03.02"]
[Round "3"]
[White "JulianProleiko"]
[Black "klimkoj"]
[Result "1-0"]
[WhiteElo "2424"]
[BlackElo "2588"]
[TimeControl "180+1"]
[EndTime "10:28:05 PST"]
[Termination "JulianProleiko won by checkmate"]

1. e4 {[%clk 0:02:44]} 1... c5 {[%clk 0:03:00]} 2. Nf3 {[%clk 0:02:33.3]} 2...
d6 {[%clk 0:03:00.4]} 3. d4 {[%clk 0:02:33]} 3... cxd4 {[%clk 0:03:01.3]} 4.
Nxd4 {[%clk 0:02:33.7]} 4... Nf6 {[%clk 0:03:01.6]} 5. Nc3 {[%clk 0:02:34.3]}
5... a6 {[%clk 0:03:01.7]} 6. Bg5 {[%clk 0:02:34.5]} 6... e6 {[%clk 0:03:01.2]}
7. f4 {[%clk 0:02:34.7]} 7... Be7 {[%clk 0:03:00.7]} 8. Qf3 {[%clk 0:02:33.6]}
8... Nbd7 {[%clk 0:03:01]} 9. Bc4 {[%clk 0:02:25.2]} 9... Qc7 {[%clk 0:02:56.9]}
10. Bxe6 {[%clk 0:02:23.4]} 10... O-O {[%clk 0:02:37]} 11. Bb3 {[%clk
0:02:22.3]} 11... b5 {[%clk 0:02:33.6]} 12. Nf5 {[%clk 0:02:21.2]} 12... Nc5
{[%clk 0:02:22.7]} 13. Bxf6 {[%clk 0:01:01.9]} 13... Bxf6 {[%clk 0:01:53.9]} 14.
Nd5 {[%clk 0:01:02.2]} 14... Qd8 {[%clk 0:01:53.2]} 15. O-O-O {[%clk 0:00:52]}
15... Bxf5 {[%clk 0:01:45.1]} 16. exf5 {[%clk 0:00:52.5]} 16... a5 {[%clk
0:01:40.7]} 17. a3 {[%clk 0:00:37.9]} 17... b4 {[%clk 0:01:34.1]} 18. a4 {[%clk
0:00:37]} 18... Rc8 {[%clk 0:01:22.5]} 19. Kb1 {[%clk 0:00:37.2]} 19... g6
{[%clk 0:01:07.8]} 20. fxg6 {[%clk 0:00:35]} 20... hxg6 {[%clk 0:01:07.5]} 21.
h4 {[%clk 0:00:33.8]} 21... Bg7 {[%clk 0:00:55.5]} 22. h5 {[%clk 0:00:34.1]}
22... Nxb3 {[%clk 0:00:52.5]} 23. Qxb3 {[%clk 0:00:33.2]} 23... gxh5 {[%clk
0:00:36.4]} 24. Rxh5 {[%clk 0:00:34.1]} 24... Re8 {[%clk 0:00:33.1]} 25. Qg3
{[%clk 0:00:26.8]} 25... Kf8 {[%clk 0:00:10.1]} 26. Rdh1 {[%clk 0:00:26.2]}
26... f5 {[%clk 0:00:04.1]} 27. Qg6 {[%clk 0:00:23.5]} 27... Qd7 {[%clk
0:00:03.3]} 28. Rh8+ {[%clk 0:00:19.3]} 28... Bxh8 {[%clk 0:00:01.5]} 29. Rxh8#
{[%clk 0:00:19.9]} 1-0

[Event "*** Titled Tuesday Blitz"]
[Site "Chess.com"]
[Date "2021.03.02"]
[Round "3"]
[White "Enriquack"]
[Black "Cuajada_Zero"]
[Result "0-1"]
[WhiteElo "2444"]
[BlackElo "2258"]
[TimeControl "180+1"]
[EndTime "10:28:07 PST"]
[Termination "Cuajada_Zero won by resignation"]

1. e4 {[%clk 0:03:00.9]} 1... c6 {[%clk 0:02:55.5]} 2. d4 {[%clk 0:02:58.3]}
2... d5 {[%clk 0:02:55.1]} 3. e5 {[%clk 0:02:55.7]} 3... Bf5 {[%clk 0:02:53.6]}
4. Nf3 {[%clk 0:02:55.4]} 4... e6 {[%clk 0:02:52.7]} 5. Be2 {[%clk 0:02:55.8]}
5... Nd7 {[%clk 0:02:51.7]} 6. O-O {[%clk 0:02:56.2]} 6... Ne7 {[%clk
0:02:52.2]} 7. Nbd2 {[%clk 0:02:55.8]} 7... Bg6 {[%clk 0:02:50.1]} 8. a4 {[%clk
0:02:50.9]} 8... Nf5 {[%clk 0:02:47.2]} 9. Nb3 {[%clk 0:02:50.7]} 9... Be7
{[%clk 0:02:45]} 10. g4 {[%clk 0:02:48.9]} 10... Nh4 {[%clk 0:02:44.4]} 11. Nxh4
{[%clk 0:02:49.1]} 11... Bxh4 {[%clk 0:02:45.3]} 12. f4 {[%clk 0:02:49.7]} 12...
f5 {[%clk 0:02:44.3]} 13. a5 {[%clk 0:02:42.6]} 13... Be7 {[%clk 0:02:39.8]} 14.
g5 {[%clk 0:02:30.9]} 14... c5 {[%clk 0:02:34.8]} 15. h4 {[%clk 0:02:24.8]}
15... Bf7 {[%clk 0:02:26.4]} 16. Be3 {[%clk 0:02:22.7]} 16... Rc8 {[%clk
0:02:23]} 17. a6 {[%clk 0:02:20]} 17... b6 {[%clk 0:02:22.4]} 18. Bb5 {[%clk
0:02:17]} 18... h5 {[%clk 0:02:05.4]} 19. c3 {[%clk 0:01:59.2]} 19... g6 {[%clk
0:02:02]} 20. dxc5 {[%clk 0:01:42.7]} 20... bxc5 {[%clk 0:01:57.3]} 21. Na5
{[%clk 0:01:42.2]} 21... Rc7 {[%clk 0:01:44]} 22. Nc6 {[%clk 0:01:33.5]} 22...
Qa8 {[%clk 0:01:41.4]} 23. Qa4 {[%clk 0:01:33.1]} 23... Nb6 {[%clk 0:01:25.5]}
24. Qa5 {[%clk 0:01:25.2]} 24... Rxc6 {[%clk 0:01:21.7]} 25. b4 {[%clk 0:01:21]}
25... O-O {[%clk 0:01:13.2]} 26. Bxc6 {[%clk 0:01:19.6]} 26... Qxc6 {[%clk
0:01:11.9]} 27. b5 {[%clk 0:01:05.6]} 27... Qc7 {[%clk 0:01:09.1]} 28. Rfd1
{[%clk 0:01:05.6]} 28... Rd8 {[%clk 0:01:07]} 29. Kf2 {[%clk 0:01:03.4]} 29...
Be8 {[%clk 0:01:06.4]} 30. Rac1 {[%clk 0:01:03.1]} 30... Rc8 {[%clk 0:01:01]}
31. Qa3 {[%clk 0:00:57.8]} 31... Bxb5 {[%clk 0:00:53.7]} 32. Rb1 {[%clk
0:00:55.9]} 32... Be8 {[%clk 0:00:44.8]} 33. Kf3 {[%clk 0:00:52.6]} 33... Nc4
{[%clk 0:00:33.4]} 34. Qa2 {[%clk 0:00:52]} 34... Bc6 {[%clk 0:00:31.8]} 35. Bg1
{[%clk 0:00:44.9]} 35... Ba8 {[%clk 0:00:29.2]} 36. Kg3 {[%clk 0:00:43.4]} 36...
Nb6 {[%clk 0:00:27.7]} 37. Qa5 {[%clk 0:00:42.4]} 37... Qc6 {[%clk 0:00:25.3]}
38. Qa2 {[%clk 0:00:32.8]} 38... d4 {[%clk 0:00:21.2]} 39. cxd4 {[%clk
0:00:32.9]} 39... Qf3+ {[%clk 0:00:20.5]} 40. Kh2 {[%clk 0:00:32.7]} 40... Qxf4+
{[%clk 0:00:19.9]} 41. Kh3 {[%clk 0:00:32.9]} 41... Qg4+ {[%clk 0:00:18.4]} 0-1

[Event "*** Titled Tuesday Blitz"]
[Site "Chess.com"]
[Date "2021.03.02"]
[Round "3"]
[White "HouseOfDurin"]
[Black "Eloist"]
[Result "1-0"]
[WhiteElo "2167"]
[BlackElo "2339"]
[TimeControl "180+1"]
[EndTime "10:28:07 PST"]
[Termination "HouseOfDurin won by resignation"]

1. d4 {[%clk 0:03:00.9]} 1... e6 {[%clk 0:02:59.9]} 2. h4 {[%clk 0:02:59.4]}
2... d5 {[%clk 0:02:55.2]} 3. Bg5 {[%clk 0:02:59.6]} 3... Be7 {[%clk 0:02:36.6]}
4. Nf3 {[%clk 0:02:58.9]} 4... Nf6 {[%clk 0:02:30.6]} 5. e3 {[%clk 0:02:57.3]}
5... O-O {[%clk 0:02:27.6]} 6. c4 {[%clk 0:02:56.6]} 6... Ne4 {[%clk 0:02:23.2]}
7. Bxe7 {[%clk 0:02:55.7]} 7... Qxe7 {[%clk 0:02:23.6]} 8. Nc3 {[%clk
0:02:53.7]} 8... c5 {[%clk 0:02:10.2]} 9. cxd5 {[%clk 0:02:44.9]} 9... Nxc3
{[%clk 0:02:04.6]} 10. bxc3 {[%clk 0:02:44]} 10... exd5 {[%clk 0:02:05]} 11. Be2
{[%clk 0:02:40.9]} 11... Nc6 {[%clk 0:02:03.8]} 12. O-O {[%clk 0:02:39.7]} 12...
Bg4 {[%clk 0:01:59.9]} 13. g3 {[%clk 0:02:39.4]} 13... Rac8 {[%clk 0:01:56.5]}
14. Rb1 {[%clk 0:02:38.5]} 14... Rfe8 {[%clk 0:01:36]} 15. Qb3 {[%clk
0:02:26.4]} 15... Qf6 {[%clk 0:01:22.8]} 16. Qxd5 {[%clk 0:02:07.7]} 16... h6
{[%clk 0:00:29.5]} 17. Rxb7 {[%clk 0:01:49.7]} 17... Rcd8 {[%clk 0:00:22.3]} 18.
Qxc5 {[%clk 0:01:33.8]} 18... Bxf3 {[%clk 0:00:21.7]} 19. Bxf3 {[%clk 0:01:02]}
19... Qxf3 {[%clk 0:00:22.6]} 20. Rfb1 {[%clk 0:01:00.2]} 20... Re6 {[%clk
0:00:16.8]} 21. Rc7 {[%clk 0:00:56.4]} 21... Rf6 {[%clk 0:00:16.3]} 22. Rb2
{[%clk 0:00:47.9]} 22... Rd5 {[%clk 0:00:15.8]} 23. Qc4 {[%clk 0:00:26.9]} 23...
Rdf5 {[%clk 0:00:13.8]} 24. Rc8+ {[%clk 0:00:21.6]} 24... Kh7 {[%clk 0:00:13.5]}
25. Qd3 {[%clk 0:00:20.1]} 25... Rg6 {[%clk 0:00:12.7]} 26. Kh2 {[%clk 0:00:18]}
26... Rg4 {[%clk 0:00:09.5]} 27. Rb5 {[%clk 0:00:17]} 27... g6 {[%clk
0:00:09.1]} 28. Rxf5 {[%clk 0:00:15.9]} 28... Qxf5 {[%clk 0:00:08.8]} 29. Qxf5
{[%clk 0:00:15.6]} 29... gxf5 {[%clk 0:00:09.7]} 30. Rxc6 {[%clk 0:00:15.9]} 1-0

[Event "*** Titled Tuesday Blitz"]
[Site "Chess.com"]
[Date "2021.03.02"]
[Round "3"]
[White "GLeruste"]
[Black "lacafi"]
[Result "1-0"]
[WhiteElo "2483"]
[BlackElo "2176"]
[TimeControl "180+1"]
[EndTime "10:28:08 PST"]
[Termination "GLeruste won on time"]

1. d4 {[%clk 0:03:00.9]} 1... f5 {[%clk 0:02:59.2]} 2. Nc3 {[%clk 0:03:00.9]}
2... Nf6 {[%clk 0:02:59.8]} 3. Bg5 {[%clk 0:03:00.9]} 3... g6 {[%clk 0:02:59.6]}
4. h4 {[%clk 0:02:54.7]} 4... Bg7 {[%clk 0:02:59.3]} 5. h5 {[%clk 0:02:50]} 5...
Nxh5 {[%clk 0:02:55.1]} 6. Rxh5 {[%clk 0:02:49.9]} 6... gxh5 {[%clk 0:02:55.2]}
7. e4 {[%clk 0:02:50.1]} 7... O-O {[%clk 0:02:54.4]} 8. exf5 {[%clk 0:02:45.6]}
8... d5 {[%clk 0:02:46.9]} 9. Qxh5 {[%clk 0:02:37.5]} 9... Bxf5 {[%clk
0:02:44.8]} 10. O-O-O {[%clk 0:02:34.2]} 10... Bg6 {[%clk 0:02:43.1]} 11. Qh4
{[%clk 0:02:34.2]} 11... Nc6 {[%clk 0:02:37.7]} 12. Nf3 {[%clk 0:02:32.5]} 12...
Bf6 {[%clk 0:02:26.9]} 13. Bb5 {[%clk 0:02:11.9]} 13... Bxg5+ {[%clk 0:02:19.3]}
14. Qxg5 {[%clk 0:02:00.9]} 14... Qd6 {[%clk 0:01:48.7]} 15. Nxd5 {[%clk
0:01:42.5]} 15... Rf5 {[%clk 0:01:20.7]} 16. Qe3 {[%clk 0:01:04.1]} 16... Qxd5
{[%clk 0:01:03.3]} 17. Ba4 {[%clk 0:01:04.4]} 17... Kh8 {[%clk 0:00:47.3]} 18.
Bb3 {[%clk 0:01:04.2]} 18... Qd6 {[%clk 0:00:33.3]} 19. Kb1 {[%clk 0:01:03.8]}
19... Raf8 {[%clk 0:00:21.8]} 20. Be6 {[%clk 0:01:02.5]} 20... R5f6 {[%clk
0:00:19.8]} 21. d5 {[%clk 0:01:02.6]} 21... Nd8 {[%clk 0:00:17.9]} 22. Bh3
{[%clk 0:01:01.3]} 22... b6 {[%clk 0:00:13]} 23. a3 {[%clk 0:01:00.2]} 23... Nb7
{[%clk 0:00:13.2]} 24. Ng5 {[%clk 0:00:56.6]} 24... Nc5 {[%clk 0:00:12.2]} 25.
Ka1 {[%clk 0:00:55.1]} 25... Bxc2 {[%clk 0:00:10.7]} 26. Re1 {[%clk 0:00:50.3]}
26... Nb3+ {[%clk 0:00:10.4]} 27. Ka2 {[%clk 0:00:50.8]} 27... Qxd5 {[%clk
0:00:10.7]} 28. Be6 {[%clk 0:00:31.1]} 28... Nc1+ {[%clk 0:00:09.8]} 29. Ka1
{[%clk 0:00:31]} 29... Nb3+ {[%clk 0:00:09.2]} 30. Ka2 {[%clk 0:00:31]} 30...
Rxe6 {[%clk 0:00:06.2]} 31. Qxe6 {[%clk 0:00:30]} 31... Nc1+ {[%clk 0:00:06.7]}
32. Ka1 {[%clk 0:00:30.2]} 32... Nb3+ {[%clk 0:00:06.2]} 33. Ka2 {[%clk
0:00:30.3]} 33... Qxe6 {[%clk 0:00:01.7]} 34. Nxe6 {[%clk 0:00:29.8]} 34... Rxf2
{[%clk 0:00:01.5]} 35. Nxc7 {[%clk 0:00:29.1]} 1-0

[Event "*** Titled Tuesday Blitz"]
[Site "Chess.com"]
[Date "2021.03.02"]
[Round "3"]
[White "MalyDominator"]
[Black "Goryachkina"]
[Result "0-1"]
[WhiteElo "2485"]
[BlackElo "2673"]
[TimeControl "180+1"]
[EndTime "10:28:09 PST"]
[Termination "Goryachkina won on time"]

1. e4 {[%clk 0:03:00.9]} 1... c6 {[%clk 0:02:59.7]} 2. d4 {[%clk 0:03:00.2]}
2... d5 {[%clk 0:02:59.9]} 3. exd5 {[%clk 0:02:59.9]} 3... cxd5 {[%clk
0:02:59.9]} 4. Bd3 {[%clk 0:03:00.5]} 4... Nc6 {[%clk 0:02:59.9]} 5. c3 {[%clk
0:03:00.9]} 5... Nf6 {[%clk 0:03:00.3]} 6. h3 {[%clk 0:03:00.8]} 6... g6 {[%clk
0:02:56.3]} 7. Nf3 {[%clk 0:03:00.8]} 7... Bg7 {[%clk 0:02:56]} 8. O-O {[%clk
0:03:00.4]} 8... O-O {[%clk 0:02:52.5]} 9. Re1 {[%clk 0:02:58.5]} 9... Bf5
{[%clk 0:02:47.7]} 10. Be2 {[%clk 0:02:58.4]} 10... h6 {[%clk 0:02:40.8]} 11.
Be3 {[%clk 0:02:51.5]} 11... Qc7 {[%clk 0:02:39.6]} 12. Nbd2 {[%clk 0:02:50.7]}
12... Rad8 {[%clk 0:02:37.4]} 13. Nb3 {[%clk 0:02:40.4]} 13... g5 {[%clk
0:02:32.2]} 14. Nh2 {[%clk 0:02:09.6]} 14... Ne4 {[%clk 0:02:29.1]} 15. Nd2
{[%clk 0:02:01.7]} 15... Bh7 {[%clk 0:02:25.5]} 16. Nxe4 {[%clk 0:01:26.8]}
16... dxe4 {[%clk 0:02:24.9]} 17. Qb3 {[%clk 0:01:27]} 17... Na5 {[%clk
0:02:00.6]} 18. Qa4 {[%clk 0:01:21.3]} 18... f5 {[%clk 0:01:57.5]} 19. Rac1
{[%clk 0:00:48.7]} 19... f4 {[%clk 0:01:51]} 20. Bd2 {[%clk 0:00:48.8]} 20...
Kh8 {[%clk 0:01:33.3]} 21. c4 {[%clk 0:00:48.5]} 21... Nc6 {[%clk 0:01:31.5]}
22. d5 {[%clk 0:00:47]} 22... Nd4 {[%clk 0:01:31.5]} 23. Bc3 {[%clk 0:00:41.1]}
23... e5 {[%clk 0:01:19]} 24. Bf1 {[%clk 0:00:35.6]} 24... a6 {[%clk 0:01:11.2]}
25. b4 {[%clk 0:00:19.1]} 25... h5 {[%clk 0:01:09.8]} 26. Qd1 {[%clk 0:00:11.8]}
26... Qf7 {[%clk 0:01:08.5]} 27. Be2 {[%clk 0:00:11.7]} 27... f3 {[%clk
0:01:05.7]} 28. gxf3 {[%clk 0:00:11.9]} 28... exf3 {[%clk 0:01:01.2]} 29. Bf1
{[%clk 0:00:12.2]} 29... g4 {[%clk 0:00:57.3]} 30. Rxe5 {[%clk 0:00:09.9]} 30...
Bxe5 {[%clk 0:00:47.5]} 31. Bxd4 {[%clk 0:00:10.1]} 31... Qg7 {[%clk 0:00:47.4]}
32. Bxe5 {[%clk 0:00:09.9]} 32... Qxe5 {[%clk 0:00:47.7]} 33. hxg4 {[%clk
0:00:09.1]} 33... hxg4 {[%clk 0:00:47.5]} 34. Qe1 {[%clk 0:00:06.5]} 34... Qf4
{[%clk 0:00:42.9]} 35. Qc3+ {[%clk 0:00:02.3]} 35... Rf6 {[%clk 0:00:38.3]} 0-1